bitfinex-derivatives/quotes_SOLF0:USTF0_20260312
["timestamp","ask_amount","ask_price","bid_price","bid_amount"]
[1773298346739,8.95869966,85.286,85.243,3.93131542]
[1773298346941,8.95869966,85.285,85.243,3.93131542]
[1773298347240,8.95869966,85.284,85.243,3.93131542]
[1773298347441,8.95869966,85.283,85.243,3.93131542]
[1773298347642,8.95869966,85.282,85.243,3.93131542]
[1773298347841,8.95869966,85.281,85.243,3.93131542]
[1773298348045,14.44898164,85.285,85.243,3.93131542]
[1773298348344,3.89698164,85.283,85.243,3.93131542]
[1773298348643,3.89698164,85.279,85.231,3.93131542]
[1773298348941,3.89698164,85.275,85.231,3.93131542]
[1773298349541,3.89698164,85.273,85.231,3.93131542]
[1773298349744,3.89698164,85.271,85.231,3.93131542]
[1773298353839,3.89698164,85.27,85.231,3.93131542]
[1773298354239,3.89698164,85.269,85.231,3.93131542]
[1773298359549,3.89698164,85.266,85.231,3.93131542]
[1773298364953,3.79266094,85.262,85.226,36.92]
[1773298365145,3.79266094,85.26,85.226,36.92]
[1773298365552,3.79266094,85.26,85.226,40.61519486]
[1773298365947,3.79266094,85.26,85.227,3.69519486]
[1773298379968,10.555,85.258,85.227,3.69519486]
[1773298380170,3.79266094,85.26,85.227,3.69519486]
[1773298382070,10.555,85.259,85.227,3.69519486]
[1773298385671,14.37115852,85.259,85.227,3.69519486]
[1773298396584,3.81615852,85.259,85.227,3.69519486]
[1773298401187,8.96405025,85.258,85.227,3.69519486]
[1773298401388,3.81615852,85.259,85.227,3.69519486]
[1773298401577,8.96415825,85.258,85.227,3.69519486]
[1773298401782,3.81615852,85.259,85.227,3.69519486]
[1773298401982,8.96415878,85.258,85.227,3.69519486]
[1773298402282,3.81615852,85.259,85.227,3.69519486]
[1773298402479,8.96488051,85.258,85.229,4.04753192]
[1773298402786,3.81615852,85.259,85.229,4.04753192]
[1773298402988,8.96487819,85.258,85.229,4.04753192]
[1773298403287,3.81615852,85.259,85.229,4.04753192]
[1773298403487,8.96570655,85.258,85.229,4.04753192]
[1773298403688,3.81615852,85.259,85.229,4.04753192]
[1773298403889,8.96570655,85.258,85.229,4.04753192]
[1773298404083,3.81615852,85.259,85.229,4.04753192]
[1773298404290,8.96667051,85.258,85.229,4.04753192]
[1773298404490,8.96667051,85.257,85.229,4.04753192]
[1773298404685,3.81615852,85.259,85.229,4.04753192]
[1773298404891,8.96667051,85.258,85.229,4.04753192]
[1773298405093,4.04461296,85.277,85.236,4.04753192]
[1773298406093,4.04461296,85.277,85.24,4.04753192]
[1773298408192,4.04461296,85.277,85.243,4.04753192]
[1773298414203,4.04461296,85.277,85.207,21.8244798]
[1773298414204,4.04461296,85.29,85.246,4.04753192]
[1773298414495,4.04461296,85.29,85.251,4.04753192]
[1773298414696,4.04461296,85.29,85.259,4.04753192]
[1773298415401,10.55,85.301,85.259,4.04753192]
[1773298415402,4.04461296,85.3,85.259,4.04753192]
[1773298415999,4.04461296,85.3,85.261,10.555]
[1773298416299,4.04461296,85.3,85.262,4.04753192]
[1773298418797,4.04461296,85.309,85.267,4.04753192]
[1773298420002,10.55,85.302,85.267,4.04753192]
[1773298424011,14.55936501,85.302,85.267,4.04753192]
[1773298428211,4.00936501,85.301,85.267,4.04753192]
[1773298430714,10.55,85.3,85.267,4.04753192]
[1773298431215,10.55,85.3,85.259,10.555]
[1773298431216,4.00688746,85.299,85.255,3.84453271]
[1773298432111,4.00688746,85.299,85.258,3.84453271]
[1773298433016,10.55,85.298,85.26,3.84453271]
[1773298433423,4.00688746,85.297,85.26,3.84453271]
[1773298434517,10.551,85.294,85.26,3.84453271]
[1773298434718,4.00688746,85.297,85.26,3.84453271]
[1773298435312,14.55788746,85.291,85.26,3.84453271]
[1773298435517,4.00688746,85.29,85.26,3.84453271]
[1773298436217,4.00688746,85.288,85.26,3.84453271]
[1773298452728,10.551,85.296,85.26,3.84453271]
[1773298452930,14.55788746,85.296,85.26,3.84453271]
[1773298453134,14.55788746,85.296,85.262,3.84453271]
[1773298453330,4.00688746,85.309,85.262,3.84453271]
[1773298453534,4.00688746,85.309,85.264,3.84453271]
[1773298455134,2.56543669,85.32,85.272,3.84453271]
[1773298455135,14.55588746,85.308,85.272,3.84453271]
[1773298456034,4.00688746,85.307,85.272,3.84453271]
[1773298456431,10.549,85.308,85.272,3.84453271]
[1773298457936,4.00688746,85.307,85.275,10.553]
[1773298458334,4.00688746,85.307,85.275,14.39753271]
[1773298458537,4.00688746,85.307,85.276,3.84453271]
[1773298461242,4.00688746,85.307,85.268,40.69017186]
[1773298461440,4.00688746,85.307,85.269,3.77017186]
[1773298461741,4.00688746,85.307,85.268,36.92]
[1773298463042,3.75831423,85.299,85.268,36.92]
[1773298464339,3.75831423,85.299,85.261,10.555]
[1773298464340,3.75831423,85.299,85.269,3.77017186]
[1773298464843,10.549,85.306,85.271,3.77017186]
[1773298465843,3.75831423,85.309,85.274,3.77017186]
[1773298467048,3.75831423,85.309,85.276,10.553]
[1773298467244,3.75831423,85.307,85.274,3.77017186]
[1773298467444,3.75831423,85.307,85.264,36.92]
[1773298467751,3.75831423,85.305,85.264,36.92]
[1773298467947,3.75831423,85.303,85.264,36.92]
[1773298469051,3.75831423,85.302,85.264,36.92]
[1773298469552,3.75831423,85.302,85.266,10.554]
[1773298469750,3.75831423,85.302,85.267,3.77017186]
[1773298470353,3.75831423,85.302,85.269,3.77017186]
[1773298470550,16.87275092,85.31,85.269,3.77017186]
[1773298470853,12.66151202,85.309,85.269,3.77017186]
[1773298471053,8.90319779,85.308,85.269,3.77017186]
[1773298471250,8.90319779,85.307,85.269,3.77017186]
[1773298471454,8.90319779,85.306,85.269,3.77017186]
[1773298471649,3.75831423,85.309,85.269,3.77017186]
[1773298471850,8.90307709,85.308,85.269,3.77017186]
[1773298472054,10.549,85.306,85.273,3.77017186]
[1773298476661,3.75831423,85.309,85.277,3.77017186]
[1773298478060,3.75831423,85.309,85.278,10.553]
[1773298478963,3.75831423,85.316,85.283,3.77017186]
[1773298479158,3.75831423,85.314,85.283,3.77017186]
[1773298479461,8.90194553,85.313,85.283,3.77017186]
[1773298479661,8.90194553,85.312,85.283,3.77017186]
[1773298479861,3.75831423,85.309,85.264,36.92]
[1773298480161,3.75831423,85.307,85.264,36.92]
[1773298480358,3.75831423,85.305,85.264,36.92]
[1773298481056,3.75831423,85.3,85.264,36.92]
[1773298482253,3.80499887,85.298,85.264,36.92]
[1773298483763,3.80499887,85.298,85.264,40.68102989]
[1773298484460,3.80499887,85.298,85.264,3.76102989]
[1773298486263,3.80499887,85.296,85.26,10.555]
[1773298486562,3.80499887,85.296,85.258,36.92]
[1773298488164,3.80499887,85.294,85.258,36.92]
[1773298489568,10.551,85.293,85.258,36.92]
[1773298489863,3.80499887,85.317,85.271,3.76102989]
[1773298490064,3.80499887,85.315,85.271,3.76102989]
[1773298490267,3.81537162,85.313,85.271,3.76102989]
[1773298490468,3.81537162,85.311,85.271,3.76102989]
[1773298491066,3.81537162,85.309,85.271,3.76102989]
[1773298491869,3.81537162,85.331,85.291,3.74565699]
[1773298492068,3.81537162,85.329,85.291,3.74565699]
[1773298492368,8.89488063,85.33,85.281,3.74565699]
[1773298492369,3.81537162,85.327,85.281,3.74565699]
[1773298492573,8.89488063,85.326,85.291,3.74565699]
[1773298492870,3.81537162,85.336,85.291,3.74565699]
[1773298493066,3.81537162,85.332,85.292,3.74565699]
[1773298493270,8.89241232,85.331,85.292,3.74565699]
[1773298493468,8.89241232,85.33,85.292,3.74565699]
[1773298493770,3.81537162,85.332,85.292,3.74565699]
[1773298493973,8.88999826,85.331,85.292,3.74565699]
[1773298494172,8.88999826,85.33,85.292,3.74565699]
[1773298494373,3.81537162,85.332,85.292,3.74565699]
[1773298494570,8.88805096,85.331,85.292,3.74565699]
[1773298494770,3.81537162,85.332,85.292,3.74565699]
[1773298495075,3.81625096,85.348,85.311,3.74565699]
[1773298496175,3.81625096,85.348,85.312,3.74565699]
[1773298498172,0.00087934,85.348,85.315,3.74565699]
[1773298499370,0.00087934,85.348,85.269,42.9145459]
[1773298499371,0.00087934,85.348,85.331,3.74565699]
[1773298499576,3.81537162,85.389,85.341,3.74565699]
[1773298499777,3.81537162,85.389,85.351,3.74565699]
[1773298504478,3.81537162,85.389,85.289,21.8065459]
[1773298504479,3.81537162,85.369,85.336,36.9]
[1773298504779,2.55954826,85.36,85.326,40.64565699]
[1773298504980,6.37491988,85.36,85.326,40.64565699]
[1773298506076,6.37491988,85.36,85.253,11.73]
[1773298506077,3.81537162,85.339,85.272,3.74565699]
[1773298506273,3.81537162,85.324,85.272,3.74565699]
[1773298506476,2.55954826,85.32,85.272,3.74565699]
[1773298506674,2.55954826,85.31,85.272,3.74565699]
[1773298507076,2.55954826,85.3,85.26,3.74565699]
[1773298508674,3.81537162,85.307,85.26,3.74565699]
[1773298509074,3.81537162,85.305,85.26,3.74565699]
[1773298509274,2.55954826,85.3,85.26,3.74565699]
[1773298510081,3.81537162,85.305,85.26,3.74565699]
[1773298513892,3.81537162,85.305,85.262,3.74565699]
[1773298515207,3.81537162,85.305,85.264,10.554]
[1773298515506,3.81537162,85.305,85.264,14.29965699]
[1773298517402,3.81537162,85.305,85.264,3.74565699]
[1773298523212,3.81537162,85.305,85.267,10.554]
[1773298527113,10.55,85.304,85.267,10.554]
[1773298527319,4.03447234,85.303,85.264,3.74565699]
[1773298528014,4.03447234,85.301,85.264,3.74565699]
[1773298529107,10.55,85.298,85.264,3.74565699]
[1773298529316,4.03447234,85.301,85.264,3.74565699]
[1773298531117,10.551,85.293,85.264,3.74565699]
[1773298534720,10.55,85.299,85.264,3.74565699]
[1773298535419,14.58447234,85.299,85.264,3.74565699]
[1773298536019,4.03447234,85.298,85.264,3.74565699]
[1773298537620,10.551,85.296,85.264,3.74565699]
[1773298538620,4.03447234,85.295,85.264,3.74565699]
[1773298549939,3.50967426,85.305,85.264,3.74565699]
[1773298550331,3.49276281,85.303,85.264,3.74565699]
[1773298550535,3.49276281,85.301,85.264,3.74565699]
[1773298550835,12.42357346,85.3,85.264,3.74565699]
[1773298551035,8.93081065,85.299,85.266,3.53934389]
[1773298551235,3.49276281,85.3,85.266,3.53934389]
[1773298551535,8.93136541,85.299,85.266,3.53934389]
[1773298551728,3.49276281,85.3,85.266,3.53934389]
[1773298551926,8.93136541,85.299,85.266,3.53934389]
[1773298552133,3.49276281,85.3,85.266,3.53934389]
[1773298552435,8.93153383,85.299,85.266,3.53934389]
[1773298552635,8.93153383,85.298,85.266,3.53934389]
[1773298552934,3.49276281,85.3,85.267,10.554]
[1773298553135,8.93153383,85.299,85.267,14.09334389]
[1773298553433,8.93153383,85.298,85.267,14.09334389]
[1773298553631,3.49276281,85.3,85.267,14.09334389]
[1773298553831,8.93171296,85.299,85.267,14.09334389]
[1773298554027,3.49276281,85.3,85.267,14.09334389]
[1773298554227,8.93170808,85.299,85.268,3.53934389]
[1773298554427,3.49276281,85.3,85.268,3.53934389]
[1773298559738,3.49276281,85.31,85.278,3.53934389]
[1773298559936,3.49276281,85.328,85.28,2.55954826]
[1773298560240,3.49276281,85.326,85.281,3.53934389]
[1773298560639,3.49276281,85.324,85.281,3.53934389]
[1773298561038,3.49276281,85.324,85.29,10.551]
[1773298566252,3.49276281,85.324,85.29,14.09034389]
[1773298566550,3.49276281,85.324,85.291,3.53934389]
[1773298568142,3.49276281,85.324,85.294,3.53934389]
[1773298569145,3.49276281,85.324,85.296,3.53934389]
[1773298569349,3.49276281,85.339,85.296,3.53934389]
[1773298569550,3.49276281,85.337,85.296,3.53934389]
[1773298569848,3.49276281,85.335,85.296,3.53934389]
[1773298573650,3.49276281,85.335,85.302,3.53934389]
[1773298573955,3.49276281,85.359,85.302,3.53934389]
[1773298574256,3.49276281,85.357,85.302,3.53934389]
[1773298574453,3.49276281,85.355,85.302,3.53934389]
[1773298574653,3.49276281,85.353,85.302,3.53934389]
[1773298575153,3.49276281,85.353,85.3,2.56377418]
[1773298575154,3.49276281,85.353,85.314,3.53934389]
[1773298575953,3.49276281,85.351,85.314,3.53934389]
[1773298579456,3.49276281,85.348,85.306,10.549]
[1773298579960,3.49276281,85.348,85.306,14.08834389]
[1773298580161,3.49276281,85.348,85.307,3.90266395]
[1773298581064,10.545,85.341,85.307,3.90266395]
[1773298582758,0.07394877,85.333,85.307,3.90266395]
[1773298586360,0.07394877,85.333,85.311,3.90266395]
[1773298586567,3.66834734,85.359,85.311,3.90266395]
[1773298588163,10.543,85.358,85.321,3.90266395]
[1773298588763,10.543,85.358,85.331,0.07418355]
[1773298589463,14.21134734,85.358,85.331,0.07418355]
[1773298589955,3.66834734,85.357,85.331,0.07418355]
[1773298601872,10.543,85.358,85.331,3.81836065]
[1773298602578,3.92078681,85.366,85.335,3.7441771]
[1773298603983,3.92078681,85.366,85.337,10.545]
[1773298604181,3.92078681,85.366,85.335,3.7441771]
[1773298608483,10.542,85.368,85.336,3.7441771]
[1773298608889,14.46278681,85.368,85.336,3.7441771]
[1773298609187,14.46278681,85.368,85.306,21.099]
[1773298609188,3.92078681,85.359,85.313,3.7441771]
[1773298609387,3.92078681,85.349,85.313,3.7441771]
[1773298609889,3.92078681,85.348,85.313,3.7441771]
[1773298610090,3.92078681,85.348,85.307,10.549]
[1773298611490,0.07410366,85.336,85.307,10.549]
[1773298611785,0.07410366,85.336,85.308,3.88274348]
[1773298614587,0.07410366,85.336,85.309,10.549]
[1773298615389,0.07410366,85.336,85.31,3.88274348]
[1773298615790,0.07410366,85.336,85.313,3.88274348]
[1773298639509,0.07410366,85.336,85.277,36.9]
[1773298639510,4.07659559,85.336,85.299,3.88274348]
[1773298639813,4.00249193,85.319,85.272,3.88274348]
[1773298640214,4.00249193,85.319,85.28,3.55772943]
[1773298642114,4.00249193,85.319,85.283,3.55772943]
[1773298650017,4.00249193,85.319,85.285,3.55772943]
[1773298650222,4.00249193,85.319,85.284,14.10972943]
[1773298656627,4.00249193,85.319,85.285,3.55772943]
[1773298675442,0.07407029,85.311,85.285,3.55772943]
[1773298676242,0.07407029,85.311,85.286,10.552]
[1773298676742,4.13556668,85.311,85.258,3.88794893]
[1773298677043,4.06149639,85.308,85.261,3.88794893]
[1773298677543,4.06149639,85.308,85.274,3.88794893]
[1773298685050,0.07404636,85.3,85.274,3.88794893]
[1773298687653,4.13554275,85.3,85.265,3.88794893]
[1773298689056,4.13554275,85.3,85.266,3.88794893]
[1773298694762,0.07404636,85.3,85.266,3.88794893]
[1773298695664,0.07404636,85.3,85.277,3.88794893]
[1773298696161,4.06149639,85.316,85.277,3.88794893]
[1773298696459,4.06149639,85.314,85.277,3.88794893]
[1773298700560,4.06149639,85.314,85.278,10.553]
[1773298700864,4.06149639,85.314,85.279,3.8857785]
[1773298701762,3.71711901,85.312,85.279,3.8857785]
[1773298707669,3.71711901,85.331,85.281,3.8857785]
[1773298709174,14.26311901,85.329,85.291,3.8857785]
[1773298709774,10.547,85.327,85.291,3.8857785]
[1773298715383,3.71711901,85.324,85.291,3.8857785]
[1773298715582,3.71711901,85.319,85.28,3.8857785]
[1773298718782,3.71711901,85.319,85.281,10.552]
[1773298719083,3.71711901,85.319,85.282,3.8857785]
[1773298719685,0.07407569,85.309,85.282,3.8857785]
[1773298720682,0.07407569,85.309,85.285,3.8857785]
[1773298722086,0.07407569,85.309,85.27,2.56499033]
[1773298722087,0.07407569,85.309,85.287,4.00608772]
[1773298723988,0.07407569,85.309,85.291,4.00608772]
[1773298724889,10.547,85.327,85.291,4.00608772]
[1773298728493,10.547,85.327,85.294,4.00608772]
[1773298740499,3.92591068,85.339,85.294,4.00608772]
[1773298740705,3.92591068,85.349,85.311,3.79516831]
[1773298741204,2.56499033,85.33,85.281,3.79516831]
[1773298741404,3.92591068,85.329,85.281,3.79516831]
[1773298742001,3.92591068,85.326,85.287,3.79516831]
[1773298743000,3.92591068,85.326,85.288,10.551]
[1773298743203,3.92591068,85.326,85.288,14.34616831]
[1773298743609,3.92591068,85.323,85.288,3.79516831]
[1773298745014,3.92591068,85.321,85.288,3.79516831]
[1773298745215,3.92591068,85.321,85.282,10.552]
[1773298746015,10.548,85.319,85.282,10.552]
[1773298746215,3.92591068,85.318,85.282,10.552]
[1773298746716,3.92591068,85.318,85.282,14.34716831]
[1773298747816,3.92591068,85.318,85.283,3.79516831]
[1773298749519,3.92591068,85.318,85.284,10.552]
[1773298752220,3.92591068,85.318,85.27,2.5641442]
[1773298752221,3.92591068,85.318,85.286,14.34716831]
[1773298752419,3.92591068,85.318,85.287,3.79516831]
[1773298754422,3.92591068,85.318,85.288,10.551]
[1773298754722,3.92591068,85.318,85.288,14.34616831]
[1773298754922,3.92591068,85.318,85.289,3.79516831]
[1773298784649,3.92591068,85.318,85.295,0.0739861]
[1773298787753,3.7278844,85.34,85.296,4.06515607]
[1773298787952,3.7278844,85.34,85.295,0.0739861]
[1773298787953,3.7278844,85.339,85.295,0.0739861]
[1773298788253,3.7278844,85.339,85.285,4.06515607]
[1773298789056,3.7278844,85.326,85.288,10.551]
[1773298790754,3.7278844,85.326,85.289,4.06862774]
[1773298793751,3.7278844,85.326,85.291,4.06862774]
[1773298795060,3.7278844,85.326,85.293,4.06862774]
[1773298795853,3.85502776,85.337,85.293,4.06862774]
[1773298796060,3.85502776,85.357,85.301,4.06862774]
[1773298797060,3.85502776,85.349,85.307,4.06862774]
[1773298797356,3.85502776,85.36,85.321,4.06862774]
[1773298799962,3.85502776,85.36,85.325,4.06862774]
[1773298800967,3.85502776,85.36,85.327,4.06862774]
[1773298801763,3.85502776,85.36,85.329,4.06862774]
[1773298802765,3.85502776,85.359,85.319,4.06862774]
[1773298803264,3.85502776,85.359,85.336,0.07389224]
[1773298808867,3.85502776,85.359,85.315,10.548]
[1773298809073,3.85502776,85.329,85.289,4.06862774]
[1773298809466,3.85502776,85.329,85.29,10.551]
[1773298809672,3.85502776,85.34,85.291,4.06862774]
[1773298811170,3.85502776,85.34,85.304,4.06862774]
[1773298818570,6.41663481,85.35,85.309,4.06862774]
[1773298818776,3.85502776,85.35,85.311,4.06862774]
[1773298820077,3.85502776,85.35,85.318,10.548]
[1773298820881,3.85502776,85.35,85.312,3.70965618]
[1773298821682,3.85955441,85.349,85.312,3.70965618]
[1773298826385,3.85955441,85.347,85.312,3.70965618]
[1773298827987,3.85955441,85.347,85.313,10.548]
[1773298828689,3.85955441,85.347,85.313,14.25765618]
[1773298831689,3.85955441,85.347,85.314,3.70965618]
[1773298837095,3.85955441,85.347,85.316,14.25765618]
[1773298837395,10.543,85.354,85.317,3.70965618]
[1773298838196,10.543,85.354,85.319,3.70965618]
[1773298838390,14.40255441,85.354,85.319,3.70965618]
[1773298839993,14.40255441,85.354,85.32,10.547]
[1773298840197,14.40255441,85.354,85.321,3.70965618]
[1773298841792,3.85955441,85.354,85.321,3.70965618]
[1773298842001,3.799371,85.361,85.328,3.69896972]
[1773298848006,10.543,85.36,85.328,3.69896972]
[1773298849205,14.342371,85.36,85.328,3.69896972]
[1773298850608,10.542,85.366,85.33,3.68187161]
[1773298852008,10.542,85.366,85.333,14.22787161]
[1773298852609,3.83453944,85.365,85.334,3.68187161]
[1773298855512,0.07381978,85.358,85.334,3.68187161]
[1773298857814,0.07381978,85.358,85.339,10.545]
[1773298858011,0.07381978,85.358,85.334,3.68187161]
[1773298858517,35.17,85.449,85.301,36.9]
[1773298858518,3.83453944,85.471,85.351,3.68187161]
[1773298858817,3.83453944,85.429,85.371,3.68187161]
[1773298859016,35.17,85.493,85.339,21.091]
[1773298859017,3.83453944,85.419,85.379,3.68187161]
[1773298859417,10.536,85.417,85.379,3.68187161]
[1773298859718,3.83453944,85.409,85.37,10.541]
[1773298859910,3.83453944,85.409,85.37,14.22287161]
[1773298861318,3.83453944,85.409,85.371,3.68187161]
[1773298861618,6.39614649,85.42,85.377,3.68187161]
[1773298861819,3.83453944,85.419,85.377,3.68187161]
[1773298862318,3.83453944,85.418,85.377,3.68187161]
[1773298862720,3.83453944,85.409,85.367,10.542]
[1773298862921,2.56160705,85.44,85.38,2.56160705]
[1773298863125,2.56160705,85.44,85.381,3.68187161]
[1773298863318,6.39614649,85.44,85.381,3.68187161]
[1773298863518,3.83453944,85.439,85.381,3.68187161]
[1773298864122,3.83453944,85.439,85.396,10.538]
[1773298864321,3.83453944,85.439,85.396,14.21987161]
[1773298864927,3.83453944,85.437,85.396,3.68187161]
[1773298866026,3.83453944,85.437,85.398,10.538]
[1773298867627,3.83453944,85.437,85.398,14.21987161]
[1773298868327,3.83453944,85.437,85.399,3.68187161]
[1773298868927,2.56160705,85.43,85.399,3.68187161]
[1773298869627,2.55752781,85.43,85.399,3.68187161]
[1773298876231,3.83453944,85.437,85.399,3.68187161]
[1773298877231,3.83453944,85.435,85.399,3.68187161]
[1773298883039,10.533,85.436,85.399,3.68187161]
[1773298883242,3.69632491,85.452,85.401,3.8384031]
[1773298883539,2.03708907,85.485,85.431,3.8384031]
[1773298883738,2.03708907,85.485,85.448,3.8384031]
[1773298884042,3.69632491,85.488,85.448,3.8384031]
[1773298885939,3.69632491,85.499,85.456,3.8384031]
[1773298886144,3.69632491,85.489,85.431,3.8384031]
[1773298886344,3.69632491,85.479,85.431,3.8384031]
[1773298886547,3.69632491,85.459,85.419,3.8384031]
[1773298886845,10.53,85.459,85.419,3.8384031]
[1773298887042,14.22632491,85.459,85.419,3.8384031]
[1773298887847,3.69632491,85.458,85.419,3.8384031]
[1773298890150,14.22532491,85.469,85.421,3.8384031]
[1773298890351,3.69632491,85.46,85.421,3.8384031]
[1773298892254,10.529,85.469,85.421,3.8384031]
[1773298892454,3.69632491,85.468,85.421,3.8384031]
[1773298899062,10.53,85.464,85.421,3.8384031]
[1773298899262,14.22632491,85.464,85.421,3.8384031]
[1773298899760,10.53,85.461,85.421,3.8384031]
[1773298899963,3.69632491,85.463,85.424,3.8384031]
[1773298900655,10.532,85.448,85.41,6.39593091]
[1773298900962,3.69632491,85.447,85.41,3.8384031]
[1773298901163,3.69632491,85.447,85.412,3.8384031]
[1773298907269,10.53,85.459,85.416,3.97195019]
[1773298907472,3.9723124,85.458,85.416,3.97195019]
[1773298908773,10.529,85.47,85.429,3.97195019]
[1773298909072,3.9723124,85.469,85.429,3.97195019]
[1773298910074,3.9723124,85.469,85.432,3.89321446]
[1773298910873,10.529,85.468,85.432,3.89321446]
[1773298912678,3.9723124,85.469,85.439,10.533]
[1773298912874,3.9723124,85.469,85.432,3.89321446]
[1773298913277,2.55752781,85.48,85.432,3.89321446]
[1773298913479,3.69857689,85.479,85.432,3.89321446]
[1773298914079,10.529,85.471,85.432,3.89321446]
[1773298916180,3.69857689,85.479,85.432,3.89321446]
[1773298917078,10.53,85.465,85.432,3.89321446]
[1773298917380,3.69857689,85.479,85.432,3.89321446]
[1773298919081,10.529,85.473,85.434,3.89321446]
[1773298919479,3.69857689,85.472,85.434,3.89321446]
[1773298919680,2.55752781,85.47,85.424,3.89321446]
[1773298919979,3.69857689,85.472,85.424,3.89321446]
[1773298920181,10.529,85.471,85.438,3.89321446]
[1773298920479,3.69857689,85.472,85.438,3.89321446]
[1773298920680,3.69857689,85.487,85.441,3.89321446]
[1773298922083,14.22557689,85.486,85.446,3.89321446]
[1773298922380,3.69857689,85.486,85.446,3.89321446]
[1773298922585,3.69857689,85.499,85.451,3.89321446]
[1773298924184,10.526,85.493,85.458,3.89321446]
[1773298927689,3.69857689,85.499,85.46,3.89321446]
[1773298927886,10.525,85.5,85.461,3.89321446]
[1773298928085,3.69857689,85.51,85.461,3.89321446]
[1773298929183,10.524,85.507,85.468,3.89321446]
[1773298929384,3.69857689,85.506,85.468,3.89321446]
[1773298932089,10.525,85.503,85.468,3.89321446]
[1773298932689,3.69857689,85.506,85.47,3.89321446]
[1773298936689,3.69857689,85.503,85.47,3.89321446]
[1773298939986,10.525,85.501,85.47,3.89321446]
[1773298940193,3.69976821,85.5,85.467,10.529]
[1773298940392,3.69976821,85.5,85.46,10.53]
[1773298941693,10.526,85.498,85.464,10.53]
[1773298941893,10.526,85.498,85.465,3.85469301]
[1773298942594,3.69976821,85.5,85.465,3.85469301]
[1773298942794,3.69976821,85.5,85.468,10.529]
[1773298943394,3.69976821,85.5,85.465,3.85469301]
[1773298944001,10.525,85.504,85.467,3.85469301]
[1773298944599,16.77671182,85.51,85.47,3.85469301]
[1773298945001,3.69976821,85.509,85.47,3.85469301]
[1773298945501,3.69976821,85.509,85.477,10.528]
[1773298946400,3.69976821,85.509,85.477,14.38269301]
[1773298948297,3.69976821,85.523,85.482,3.85469301]
[1773298948500,3.69976821,85.509,85.451,3.85469301]
[1773298948895,6.25271182,85.52,85.467,3.85469301]
[1773298949504,10.525,85.507,85.469,3.85469301]
[1773298952599,10.525,85.501,85.469,3.85469301]
[1773298953106,3.69976821,85.51,85.469,3.85469301]
[1773298954103,3.69976821,85.506,85.469,3.85469301]
[1773298954706,10.525,85.505,85.472,10.529]
[1773298955002,10.525,85.505,85.473,3.85469301]
[1773298955902,14.22476821,85.505,85.473,3.85469301]
[1773298956503,3.69976821,85.505,85.473,3.85469301]
[1773298958005,14.22476821,85.504,85.473,3.85469301]
[1773298958204,3.69976821,85.503,85.473,3.85469301]
[1773298959205,3.69976821,85.503,85.466,10.529]
[1773298959406,3.69976821,85.503,85.424,21.07]
[1773298959407,3.69976821,85.499,85.452,3.85469301]
[1773298959906,3.69976821,85.491,85.453,10.531]
[1773298960705,10.526,85.492,85.452,3.85469301]
[1773298960706,3.69976821,85.486,85.452,3.85469301]
[1773298960906,3.69976821,85.486,85.445,10.532]
[1773298961307,3.69976821,85.486,85.445,14.26251744]
[1773298961606,3.69976821,85.486,85.446,3.73051744]
[1773298963409,3.69976821,85.486,85.447,10.532]
[1773298963905,10.527,85.487,85.448,3.73051744]
[1773298964110,3.73401592,85.499,85.448,3.73051744]
[1773298964511,10.527,85.486,85.448,3.73051744]
[1773298967717,3.73401592,85.485,85.448,3.73051744]
[1773298968813,3.73401592,85.482,85.448,3.73051744]
[1773298969016,3.73401592,85.482,85.447,10.532]
[1773298969216,3.73401592,85.482,85.441,3.73051744]
[1773298969816,3.73401592,85.482,85.43,2.55294361]
[1773298969817,3.73401592,85.473,85.43,3.73051744]
[1773298970315,2.55294361,85.48,85.433,10.533]
[1773298970316,3.82424222,85.471,85.433,10.533]
[1773298972018,10.529,85.47,85.433,10.533]
[1773298972218,10.529,85.47,85.433,14.02722002]
[1773298974420,10.529,85.47,85.437,10.533]
[1773298975221,10.529,85.47,85.437,14.02722002]
[1773298976724,3.82424222,85.471,85.438,3.49422002]
[1773298981120,3.82424222,85.469,85.43,10.534]
[1773298982125,3.82424222,85.469,85.406,36.84]
[1773298982126,3.82424222,85.469,85.434,10.533]
[1773298983021,10.529,85.468,85.431,3.49422002]
[1773298983228,14.35324222,85.468,85.431,3.49422002]
[1773298983526,3.82424222,85.468,85.431,3.49422002]
[1773298984026,3.82424222,85.468,85.435,10.533]
[1773298994334,3.82424222,85.468,85.435,14.02722002]
[1773298995336,3.82424222,85.468,85.437,14.02722002]
[1773298996936,3.82424222,85.468,85.438,3.49422002]
[1773298997338,3.82424222,85.468,85.441,10.532]
[1773298998941,3.82424222,85.468,85.438,3.49422002]
[1773298999138,3.82424222,85.468,85.435,10.533]